[Event "Titled Tuesday Blitz May 24 Early 2022"]
[White "Quirke, Jeffrey"]
[Black "Shton, Roman"]
[WhiteFideId "2013029"]
[BlackFideId "14137461"]
[WhiteElo "2236"]
[BlackElo "2013"]
[Result "1-0"]
[Round "11"]
[TimeControl "180+1"]
[Date "2022.05.25"]
[WhiteClock "0:02:16"]
[BlackClock "0:02:11"]

1. e4 {[%clk 0:03:00]}  Nf6 {[%clk 0:02:51]} 2. e5 {[%clk 0:02:57]}  Nd5 {[%clk 0:02:50]} 3. d4 {[%clk 0:02:57]}  d6 {[%clk 0:02:50]} 4. exd6 {[%clk 0:02:57]}  cxd6 {[%clk 0:02:51]} 5. Nf3 {[%clk 0:02:45]}  g6 {[%clk 0:02:51]} 6. Be2 {[%clk 0:02:44]}  Bg7 {[%clk 0:02:51]} 7. O-O {[%clk 0:02:44]}  O-O {[%clk 0:02:50]} 8. Re1 {[%clk 0:02:44]}  Nc6 {[%clk 0:02:50]} 9. c3 {[%clk 0:02:44]}  Bd7 {[%clk 0:02:48]} 10. Nbd2 {[%clk 0:02:43]}  Rc8 {[%clk 0:02:47]} 11. Nf1 {[%clk 0:02:40]}  e5 {[%clk 0:02:45]} 12. dxe5 {[%clk 0:02:34]}  Be6 {[%clk 0:02:13]} 13. exd6 {[%clk 0:02:27]}  Qxd6 {[%clk 0:02:11]} 14. c4 {[%clk 0:02:16]} 1-0


[Site "https://www.chess.com"]

[Event "Titled Tuesday Blitz May 24 Early 2022"]
[White "Rahman, Adel"]
[Black "Agasarov, Benik"]
[WhiteFideId "14204177"]
[BlackFideId "13314823"]
[WhiteElo "2175"]
[BlackElo "2583"]
[Result "0-1"]
[Round "11"]
[TimeControl "180+1"]
[Date "2022.05.25"]
[WhiteClock "0:01:01"]
[BlackClock "0:02:12"]

1. e4 {[%clk 0:03:00]}  e5 {[%clk 0:02:58]} 2. Nf3 {[%clk 0:03:01]}  Nc6 {[%clk 0:02:59]} 3. d4 {[%clk 0:03:01]}  exd4 {[%clk 0:02:59]} 4. Nxd4 {[%clk 0:03:01]}  Nf6 {[%clk 0:02:59]} 5. Nxc6 {[%clk 0:03:01]}  bxc6 {[%clk 0:02:59]} 6. e5 {[%clk 0:03:02]}  Qe7 {[%clk 0:02:59]} 7. Qe2 {[%clk 0:03:02]}  Nd5 {[%clk 0:03:00]} 8. h4 {[%clk 0:03:01]}  d6 {[%clk 0:03:00]} 9. exd6 {[%clk 0:03:00]}  cxd6 {[%clk 0:02:59]} 10. a3 {[%clk 0:02:51]}  Bg4 {[%clk 0:02:53]} 11. f3 {[%clk 0:02:48]}  Be6 {[%clk 0:02:52]} 12. Bd2 {[%clk 0:02:35]}  g6 {[%clk 0:02:50]} 13. Nc3 {[%clk 0:02:34]}  Bg7 {[%clk 0:02:47]} 14. Nxd5 {[%clk 0:02:30]}  Bxd5 {[%clk 0:02:47]} 15. Qxe7+ {[%clk 0:02:26]}  Kxe7 {[%clk 0:02:47]} 16. O-O-O {[%clk 0:02:27]}  Rhb8 {[%clk 0:02:44]} 17. Bg5+ {[%clk 0:02:19]}  Kd7 {[%clk 0:02:41]} 18. b4 {[%clk 0:02:17]}  a5 {[%clk 0:02:40]} 19. c4 {[%clk 0:02:16]}  Be6 {[%clk 0:02:40]} 20. Bf4 {[%clk 0:02:10]}  Bf8 {[%clk 0:02:38]} 21. b5 {[%clk 0:02:01]}  cxb5 {[%clk 0:02:30]} 22. cxb5 {[%clk 0:02:01]}  Rc8+ {[%clk 0:02:28]} 23. Kb1 {[%clk 0:01:52]}  Bf5+ {[%clk 0:02:26]} 24. Bd3 {[%clk 0:01:49]}  Rab8 {[%clk 0:02:23]} 25. a4 {[%clk 0:01:47]}  Rc4 {[%clk 0:02:22]} 26. Bxf5+ {[%clk 0:01:33]}  gxf5 {[%clk 0:02:22]} 27. Be3 {[%clk 0:01:21]}  Rxa4 {[%clk 0:02:16]} 28. b6 {[%clk 0:01:21]}  f4 {[%clk 0:02:12]} 29. Bf2 {[%clk 0:01:20]}  Rc8 {[%clk 0:02:12]} 30. Rd5 {[%clk 0:01:01]}  Rb4+ {[%clk 0:02:12]} 0-1


[Site "https://www.chess.com"]

[Event "Titled Tuesday Blitz May 24 Early 2022"]
[White "Richter, Nils"]
[Black "Samunenkov, Ihor"]
[WhiteFideId "12990809"]
[BlackFideId "14187086"]
[WhiteElo "2243"]
[BlackElo "2409"]
[Result "0-1"]
[Round "11"]
[TimeControl "180+1"]
[Date "2022.05.25"]
[WhiteClock "0:00:36"]
[BlackClock "0:00:50"]

1. c4 {[%clk 0:03:00]}  c5 {[%clk 0:03:00]} 2. g3 {[%clk 0:02:59]}  Nc6 {[%clk 0:02:59]} 3. Bg2 {[%clk 0:02:57]}  g6 {[%clk 0:02:59]} 4. Nc3 {[%clk 0:02:50]}  Bg7 {[%clk 0:03:00]} 5. a3 {[%clk 0:02:48]}  e6 {[%clk 0:02:58]} 6. b4 {[%clk 0:02:46]}  Nxb4 {[%clk 0:02:57]} 7. axb4 {[%clk 0:02:47]}  cxb4 {[%clk 0:02:58]} 8. d4 {[%clk 0:02:17]}  bxc3 {[%clk 0:02:57]} 9. e3 {[%clk 0:02:18]}  Ne7 {[%clk 0:02:55]} 10. Ne2 {[%clk 0:02:17]}  d5 {[%clk 0:02:50]} 11. c5 {[%clk 0:02:13]}  O-O {[%clk 0:02:45]} 12. Nxc3 {[%clk 0:02:13]}  Bd7 {[%clk 0:02:24]} 13. Bb2 {[%clk 0:02:11]}  Bc6 {[%clk 0:02:20]} 14. h4 {[%clk 0:02:10]}  h5 {[%clk 0:02:19]} 15. g4 {[%clk 0:02:10]}  hxg4 {[%clk 0:02:03]} 16. Qxg4 {[%clk 0:02:11]}  e5 {[%clk 0:02:04]} 17. h5 {[%clk 0:02:02]}  exd4 {[%clk 0:02:01]} 18. exd4 {[%clk 0:01:54]}  Qc8 {[%clk 0:01:51]} 19. Qh4 {[%clk 0:01:28]}  Nf5 {[%clk 0:01:49]} 20. Qh2 {[%clk 0:01:25]}  Nxd4 {[%clk 0:01:21]} 21. hxg6 {[%clk 0:01:20]}  fxg6 {[%clk 0:01:22]} 22. Nxd5 {[%clk 0:01:13]}  Qe6+ {[%clk 0:01:11]} 23. Kd1 {[%clk 0:01:00]}  Bxd5 {[%clk 0:00:58]} 24. Bxd4 {[%clk 0:00:55]}  Qg4+ {[%clk 0:00:57]} 25. Kc1 {[%clk 0:00:50]}  Qxd4 {[%clk 0:00:57]} 26. Bxd5+ {[%clk 0:00:43]}  Qxd5 {[%clk 0:00:57]} 27. Qh7+ {[%clk 0:00:39]}  Kf7 {[%clk 0:00:57]} 28. Ra4 {[%clk 0:00:39]}  Qg5+ {[%clk 0:00:50]} 29. f4 {[%clk 0:00:36]}  Qxc5+ {[%clk 0:00:50]} 0-1


[Site "https://www.chess.com"]

[Event "Titled Tuesday Blitz May 24 Early 2022"]
[White "Rodchenkov, Sergey D."]
[Black "Kvaloy, Aksel Bu"]
[WhiteFideId "4168712"]
[BlackFideId "1528815"]
[WhiteElo "2306"]
[BlackElo "2053"]
[Result "1-0"]
[Round "11"]
[TimeControl "180+1"]
[Date "2022.05.25"]
[WhiteClock "0:01:13"]
[BlackClock "0:00:02"]

1. e4 {[%clk 0:03:00]}  e5 {[%clk 0:02:58]} 2. Nf3 {[%clk 0:02:55]}  Nc6 {[%clk 0:02:55]} 3. Bc4 {[%clk 0:02:55]}  Nf6 {[%clk 0:02:51]} 4. d3 {[%clk 0:02:55]}  h6 {[%clk 0:02:51]} 5. O-O {[%clk 0:02:53]}  d6 {[%clk 0:02:50]} 6. c3 {[%clk 0:02:52]}  g5 {[%clk 0:02:37]} 7. d4 {[%clk 0:02:51]}  g4 {[%clk 0:02:34]} 8. Ne1 {[%clk 0:02:48]}  Bg7 {[%clk 0:02:09]} 9. f4 {[%clk 0:02:44]}  exd4 {[%clk 0:02:02]} 10. e5 {[%clk 0:02:41]}  dxe5 {[%clk 0:01:57]} 11. fxe5 {[%clk 0:02:41]}  Nxe5 {[%clk 0:01:58]} 12. Bb3 {[%clk 0:02:41]}  d3 {[%clk 0:01:52]} 13. Bf4 {[%clk 0:02:38]}  Ng6 {[%clk 0:01:47]} 14. Nxd3 {[%clk 0:02:36]}  Nxf4 {[%clk 0:01:46]} 15. Rxf4 {[%clk 0:02:35]}  O-O {[%clk 0:01:46]} 16. Qf1 {[%clk 0:02:34]}  Qd6 {[%clk 0:01:40]} 17. Nd2 {[%clk 0:02:18]}  Nd5 {[%clk 0:01:34]} 18. Nc4 {[%clk 0:02:07]}  Qg6 {[%clk 0:01:23]} 19. Nde5 {[%clk 0:02:03]}  Qg5 {[%clk 0:01:01]} 20. Rxf7 {[%clk 0:01:56]}  Be6 {[%clk 0:01:01]} 21. Rxf8+ {[%clk 0:01:50]}  Rxf8 {[%clk 0:01:02]} 22. Qe2 {[%clk 0:01:51]}  b5 {[%clk 0:00:54]} 23. Nd3 {[%clk 0:01:50]}  Re8 {[%clk 0:00:32]} 24. Nce5 {[%clk 0:01:46]}  Nf4 {[%clk 0:00:26]} 25. Nxf4 {[%clk 0:01:38]}  Qxf4 {[%clk 0:00:27]} 26. Nd3 {[%clk 0:01:26]}  Qf7 {[%clk 0:00:24]} 27. Qc2 {[%clk 0:01:24]}  Bxb3 {[%clk 0:00:18]} 28. Qxb3 {[%clk 0:01:25]}  c6 {[%clk 0:00:14]} 29. Qxf7+ {[%clk 0:01:23]}  Kxf7 {[%clk 0:00:15]} 30. Rf1+ {[%clk 0:01:23]}  Ke6 {[%clk 0:00:14]} 31. Re1+ {[%clk 0:01:23]}  Kf7 {[%clk 0:00:13]} 32. Rxe8 {[%clk 0:01:20]}  Kxe8 {[%clk 0:00:14]} 33. Kf2 {[%clk 0:01:20]}  Ke7 {[%clk 0:00:12]} 34. Kg3 {[%clk 0:01:21]}  Ke6 {[%clk 0:00:08]} 35. Kxg4 {[%clk 0:01:21]}  Kd5 {[%clk 0:00:08]} 36. Kf3 {[%clk 0:01:21]}  Kc4 {[%clk 0:00:08]} 37. Ke2 {[%clk 0:01:22]}  c5 {[%clk 0:00:08]} 38. Kd2 {[%clk 0:01:18]}  Bf6 {[%clk 0:00:08]} 39. Nf4 {[%clk 0:01:14]}  b4 {[%clk 0:00:05]} 40. b3+ {[%clk 0:01:14]}  Kb5 {[%clk 0:00:05]} 41. c4+ {[%clk 0:01:15]}  Kc6 {[%clk 0:00:06]} 42. Nd5 {[%clk 0:01:15]}  Be5 {[%clk 0:00:03]} 43. g3 {[%clk 0:01:16]}  Kd6 {[%clk 0:00:03]} 44. Kd3 {[%clk 0:01:15]}  Ke6 {[%clk 0:00:04]} 45. Ke4 {[%clk 0:01:16]}  Bd4 {[%clk 0:00:04]} 46. Nc7+ {[%clk 0:01:13]}  Kd7 {[%clk 0:00:02]} 47. Nb5 {[%clk 0:01:14]}  a6 {[%clk 0:00:02]} 48. Nxd4 {[%clk 0:01:13]} 1-0


[Site "https://www.chess.com"]

[Event "Titled Tuesday Blitz May 24 Early 2022"]
[White "Rom, Jasper"]
[Black "Reprintsev, Alexander"]
[WhiteFideId "2023733"]
[BlackFideId "14100541"]
[WhiteElo "2233"]
[BlackElo "2108"]
[Result "0-1"]
[Round "11"]
[TimeControl "180+1"]
[Date "2022.05.25"]
[WhiteClock "0:00:09"]
[BlackClock "0:01:54"]

1. e4 {[%clk 0:03:00]}  d5 {[%clk 0:02:52]} 2. exd5 {[%clk 0:03:00]}  Qxd5 {[%clk 0:02:51]} 3. Nc3 {[%clk 0:02:59]}  Qa5 {[%clk 0:02:51]} 4. d4 {[%clk 0:02:59]}  Nf6 {[%clk 0:02:51]} 5. Nf3 {[%clk 0:02:59]}  Nc6 {[%clk 0:02:46]} 6. Bb5 {[%clk 0:02:53]}  Ne4 {[%clk 0:02:36]} 7. Qd3 {[%clk 0:02:42]}  Nxc3 {[%clk 0:02:35]} 8. bxc3 {[%clk 0:02:37]}  a6 {[%clk 0:02:35]} 9. Bxc6+ {[%clk 0:02:21]}  bxc6 {[%clk 0:02:36]} 10. O-O {[%clk 0:02:19]}  Bf5 {[%clk 0:02:35]} 11. Qd2 {[%clk 0:01:56]}  e6 {[%clk 0:02:34]} 12. Re1 {[%clk 0:01:55]}  Bd6 {[%clk 0:02:33]} 13. Ne5 {[%clk 0:01:53]}  Qa4 {[%clk 0:02:30]} 14. Nd3 {[%clk 0:01:37]}  O-O {[%clk 0:02:27]} 15. Re2 {[%clk 0:01:25]}  Rab8 {[%clk 0:02:27]} 16. Qd1 {[%clk 0:00:51]}  Rb5 {[%clk 0:02:09]} 17. Nb2 {[%clk 0:00:40]}  Qa5 {[%clk 0:02:05]} 18. c4 {[%clk 0:00:30]}  Rb7 {[%clk 0:01:56]} 19. c5 {[%clk 0:00:23]}  Be7 {[%clk 0:01:55]} 20. Nc4 {[%clk 0:00:20]}  Qc3 {[%clk 0:01:55]} 21. Bb2 {[%clk 0:00:09]}  Qxc4 {[%clk 0:01:54]} 0-1


[Site "https://www.chess.com"]

[Event "Titled Tuesday Blitz May 24 Early 2022"]
[White "Roman, Rodrigo"]
[Black "Osiecki, Stanislaw"]
[WhiteFideId "3701220"]
[BlackFideId "1102990"]
[WhiteElo "2001"]
[BlackElo "2127"]
[Result "1-0"]
[Round "11"]
[TimeControl "180+1"]
[Date "2022.05.25"]
[WhiteClock "0:01:49"]
[BlackClock "0:01:36"]

1. Nf3 {[%clk 0:03:00]}  Nf6 {[%clk 0:02:58]} 2. d4 {[%clk 0:03:00]}  g6 {[%clk 0:02:58]} 3. c4 {[%clk 0:02:59]}  Bg7 {[%clk 0:02:58]} 4. Nc3 {[%clk 0:03:00]}  d6 {[%clk 0:02:59]} 5. e4 {[%clk 0:03:00]}  O-O {[%clk 0:02:59]} 6. Bd3 {[%clk 0:03:01]}  Bg4 {[%clk 0:02:58]} 7. h3 {[%clk 0:03:01]}  Bxf3 {[%clk 0:02:58]} 8. Qxf3 {[%clk 0:03:02]}  Nc6 {[%clk 0:02:59]} 9. Be3 {[%clk 0:03:00]}  e5 {[%clk 0:02:59]} 10. d5 {[%clk 0:02:57]}  Nd4 {[%clk 0:02:59]} 11. Bxd4 {[%clk 0:02:57]}  exd4 {[%clk 0:02:59]} 12. Ne2 {[%clk 0:02:58]}  Nd7 {[%clk 0:02:59]} 13. Qg3 {[%clk 0:02:56]}  Ne5 {[%clk 0:02:55]} 14. O-O {[%clk 0:02:56]}  Qf6 {[%clk 0:02:53]} 15. f4 {[%clk 0:02:56]}  Nxd3 {[%clk 0:02:53]} 16. Qxd3 {[%clk 0:02:57]}  c5 {[%clk 0:02:50]} 17. Rab1 {[%clk 0:02:52]}  Rfe8 {[%clk 0:02:49]} 18. b4 {[%clk 0:02:52]}  Qe7 {[%clk 0:02:48]} 19. bxc5 {[%clk 0:02:50]}  dxc5 {[%clk 0:02:49]} 20. e5 {[%clk 0:02:50]}  b6 {[%clk 0:02:47]} 21. Ng3 {[%clk 0:02:50]}  Rab8 {[%clk 0:02:36]} 22. Ne4 {[%clk 0:02:44]}  Qd7 {[%clk 0:02:24]} 23. g4 {[%clk 0:02:40]}  a6 {[%clk 0:02:18]} 24. Qa3 {[%clk 0:02:38]}  h5 {[%clk 0:02:15]} 25. gxh5 {[%clk 0:02:26]}  gxh5 {[%clk 0:02:13]} 26. Rf3 {[%clk 0:02:18]}  Qf5 {[%clk 0:02:08]} 27. Qd3 {[%clk 0:02:15]}  b5 {[%clk 0:01:59]} 28. Nf6+ {[%clk 0:02:13]}  Bxf6 {[%clk 0:01:55]} 29. Qxf5 {[%clk 0:02:12]}  Bg7 {[%clk 0:01:53]} 30. Rg3 {[%clk 0:02:11]}  Kf8 {[%clk 0:01:52]} 31. e6 {[%clk 0:02:05]}  Rb7 {[%clk 0:01:49]} 32. cxb5 {[%clk 0:02:01]}  axb5 {[%clk 0:01:47]} 33. Rxb5 {[%clk 0:02:01]}  Ra7 {[%clk 0:01:41]} 34. d6 {[%clk 0:01:48]}  Rxe6 {[%clk 0:01:35]} 35. Rb8+ {[%clk 0:01:48]}  Re8 {[%clk 0:01:36]} 36. Rxe8+ {[%clk 0:01:48]}  Kxe8 {[%clk 0:01:36]} 37. Qc8# {[%clk 0:01:49]} 1-0


[Site "https://www.chess.com"]

[Event "Titled Tuesday Blitz May 24 Early 2022"]
[White "Sarkar, Justin"]
[Black "Estrada Nieto, Julian"]
[WhiteFideId "2010011"]
[BlackFideId "5101018"]
[WhiteElo "2020"]
[BlackElo "2252"]
[Result "1-0"]
[Round "11"]
[TimeControl "180+1"]
[Date "2022.05.25"]
[WhiteClock "0:00:06"]
[BlackClock "0:00:17"]

1. e4 {[%clk 0:03:00]}  e5 {[%clk 0:02:58]} 2. Nf3 {[%clk 0:02:58]}  Nc6 {[%clk 0:02:58]} 3. Bb5 {[%clk 0:02:55]}  a6 {[%clk 0:02:58]} 4. Ba4 {[%clk 0:02:55]}  Nf6 {[%clk 0:02:59]} 5. O-O {[%clk 0:02:54]}  Be7 {[%clk 0:02:58]} 6. d3 {[%clk 0:02:47]}  b5 {[%clk 0:02:52]} 7. Bb3 {[%clk 0:02:47]}  d6 {[%clk 0:02:53]} 8. c3 {[%clk 0:02:40]}  O-O {[%clk 0:02:51]} 9. Nbd2 {[%clk 0:02:36]}  Na5 {[%clk 0:02:50]} 10. Bc2 {[%clk 0:02:31]}  c5 {[%clk 0:02:50]} 11. Re1 {[%clk 0:02:26]}  Re8 {[%clk 0:02:50]} 12. Nf1 {[%clk 0:02:25]}  h6 {[%clk 0:02:48]} 13. Ng3 {[%clk 0:02:18]}  Bf8 {[%clk 0:02:47]} 14. d4 {[%clk 0:02:14]}  Qc7 {[%clk 0:02:39]} 15. a4 {[%clk 0:02:05]}  Bd7 {[%clk 0:02:38]} 16. axb5 {[%clk 0:01:28]}  axb5 {[%clk 0:02:37]} 17. dxe5 {[%clk 0:01:19]}  dxe5 {[%clk 0:02:36]} 18. Nf5 {[%clk 0:01:17]}  Nc4 {[%clk 0:02:10]} 19. Rxa8 {[%clk 0:00:46]}  Rxa8 {[%clk 0:02:09]} 20. b3 {[%clk 0:00:45]}  Na3 {[%clk 0:02:01]} 21. Bd3 {[%clk 0:00:24]}  c4 {[%clk 0:02:00]} 22. bxc4 {[%clk 0:00:23]}  bxc4 {[%clk 0:01:50]} 23. Bf1 {[%clk 0:00:21]}  Nb5 {[%clk 0:01:42]} 24. Qc2 {[%clk 0:00:15]}  Bc5 {[%clk 0:01:36]} 25. h3 {[%clk 0:00:14]}  Ra1 {[%clk 0:01:16]} 26. Bxc4 {[%clk 0:00:10]}  Bxf2+ {[%clk 0:01:13]} 27. Qxf2 {[%clk 0:00:07]}  Qxc4 {[%clk 0:01:14]} 28. Nxe5 {[%clk 0:00:05]}  Qxc3 {[%clk 0:01:01]} 29. Nxd7 {[%clk 0:00:05]}  Rxc1 {[%clk 0:00:59]} 30. Nxf6+ {[%clk 0:00:04]}  gxf6 {[%clk 0:00:53]} 31. Rxc1 {[%clk 0:00:04]}  Qxc1+ {[%clk 0:00:53]} 32. Kh2 {[%clk 0:00:05]}  h5 {[%clk 0:00:36]} 33. Qg3+ {[%clk 0:00:04]}  Qg5 {[%clk 0:00:30]} 34. Qb8+ {[%clk 0:00:04]}  Kh7 {[%clk 0:00:29]} 35. Qxb5 {[%clk 0:00:04]}  Qf4+ {[%clk 0:00:29]} 36. Ng3 {[%clk 0:00:04]}  h4 {[%clk 0:00:27]} 37. Qf5+ {[%clk 0:00:04]}  Qxf5 {[%clk 0:00:21]} 38. Nxf5 {[%clk 0:00:05]}  Kg6 {[%clk 0:00:20]} 39. Nxh4+ {[%clk 0:00:05]}  Kg5 {[%clk 0:00:21]} 40. g3 {[%clk 0:00:06]}  f5 {[%clk 0:00:17]} 41. Nxf5 {[%clk 0:00:05]}  f6 {[%clk 0:00:18]} 42. h4+ {[%clk 0:00:05]}  Kg4 {[%clk 0:00:18]} 43. Kg2 {[%clk 0:00:05]}  Kh5 {[%clk 0:00:17]} 44. Kf3 {[%clk 0:00:05]}  Kg6 {[%clk 0:00:17]} 45. g4 {[%clk 0:00:06]} 1-0


[Site "https://www.chess.com"]

[Event "Titled Tuesday Blitz May 24 Early 2022"]
[White "Schekachikhin, Maksim"]
[Black "Tanenbaum, Zachary"]
[WhiteFideId "24177830"]
[BlackFideId "2060850"]
[WhiteElo "2239"]
[BlackElo "2168"]
[Result "1-0"]
[Round "11"]
[TimeControl "180+1"]
[Date "2022.05.24"]
[WhiteClock "0:00:10"]
[BlackClock "0:00:03"]

1. b3 {[%clk 0:03:00]}  e5 {[%clk 0:02:59]} 2. Bb2 {[%clk 0:03:00]}  Nc6 {[%clk 0:03:00]} 3. c4 {[%clk 0:03:00]}  Nf6 {[%clk 0:03:00]} 4. e3 {[%clk 0:02:58]}  d5 {[%clk 0:02:57]} 5. cxd5 {[%clk 0:02:58]}  Nxd5 {[%clk 0:02:58]} 6. a3 {[%clk 0:02:58]}  Bd6 {[%clk 0:02:57]} 7. Qc2 {[%clk 0:02:58]}  O-O {[%clk 0:02:56]} 8. Nf3 {[%clk 0:02:58]}  h6 {[%clk 0:02:55]} 9. Bc4 {[%clk 0:02:52]}  Nb6 {[%clk 0:02:54]} 10. Be2 {[%clk 0:02:52]}  f5 {[%clk 0:02:52]} 11. d3 {[%clk 0:02:52]}  e4 {[%clk 0:02:00]} 12. dxe4 {[%clk 0:02:49]}  fxe4 {[%clk 0:02:01]} 13. Nd4 {[%clk 0:02:20]}  Qg5 {[%clk 0:01:54]} 14. Qxe4 {[%clk 0:02:01]}  Nxd4 {[%clk 0:01:53]} 15. Bxd4 {[%clk 0:01:39]}  Bf5 {[%clk 0:01:53]} 16. Qxb7 {[%clk 0:01:35]}  Rae8 {[%clk 0:01:37]} 17. Nd2 {[%clk 0:01:25]}  Be6 {[%clk 0:00:43]} 18. Bxb6 {[%clk 0:01:09]}  axb6 {[%clk 0:00:38]} 19. O-O {[%clk 0:01:00]}  Bd5 {[%clk 0:00:37]} 20. Qxd5+ {[%clk 0:01:00]}  Qxd5 {[%clk 0:00:37]} 21. Bc4 {[%clk 0:01:00]}  Qxc4 {[%clk 0:00:27]} 22. Nxc4 {[%clk 0:01:00]}  Be7 {[%clk 0:00:22]} 23. a4 {[%clk 0:01:00]}  Bf6 {[%clk 0:00:21]} 24. Rad1 {[%clk 0:01:00]}  Re7 {[%clk 0:00:22]} 25. f3 {[%clk 0:00:58]}  Rb8 {[%clk 0:00:16]} 26. e4 {[%clk 0:00:52]}  b5 {[%clk 0:00:17]} 27. axb5 {[%clk 0:00:51]}  Rxb5 {[%clk 0:00:18]} 28. Rd3 {[%clk 0:00:51]}  c5 {[%clk 0:00:18]} 29. Rfd1 {[%clk 0:00:51]}  Bd4+ {[%clk 0:00:18]} 30. Kf1 {[%clk 0:00:51]}  Ra7 {[%clk 0:00:18]} 31. Nd6 {[%clk 0:00:48]}  Rb4 {[%clk 0:00:17]} 32. Nf5 {[%clk 0:00:48]}  Be5 {[%clk 0:00:09]} 33. g3 {[%clk 0:00:38]}  Ra3 {[%clk 0:00:09]} 34. f4 {[%clk 0:00:38]}  Bb2 {[%clk 0:00:04]} 35. e5 {[%clk 0:00:33]}  Raxb3 {[%clk 0:00:04]} 36. Rxb3 {[%clk 0:00:31]}  Rxb3 {[%clk 0:00:05]} 37. Rd7 {[%clk 0:00:30]}  c4 {[%clk 0:00:04]} 38. e6 {[%clk 0:00:19]}  Rb8 {[%clk 0:00:02]} 39. e7 {[%clk 0:00:14]}  Ba3 {[%clk 0:00:01]} 40. Rd8+ {[%clk 0:00:14]}  Rxd8 {[%clk 0:00:01]} 41. exd8=Q+ {[%clk 0:00:12]}  Kh7 {[%clk 0:00:02]} 42. Qd5 {[%clk 0:00:12]}  Bf8 {[%clk 0:00:01]} 43. Qxc4 {[%clk 0:00:11]}  Kh8 {[%clk 0:00:02]} 44. Qf7 {[%clk 0:00:11]}  Kh7 {[%clk 0:00:02]} 45. Qxf8 {[%clk 0:00:11]}  Kg6 {[%clk 0:00:03]} 46. g4 {[%clk 0:00:10]}  h5 {[%clk 0:00:03]} 47. Qxg7# {[%clk 0:00:10]} 1-0


[Site "https://www.chess.com"]

[Event "Titled Tuesday Blitz May 24 Early 2022"]
[White "Skliarov, Viktor"]
[Black "Xu, Yi"]
[WhiteFideId "14106736"]
[BlackFideId "8605564"]
[WhiteElo "2229"]
[BlackElo "2471"]
[Result "1-0"]
[Round "11"]
[TimeControl "180+1"]
[Date "2022.05.24"]
[WhiteClock "0:00:26"]
[BlackClock "0:01:25"]

1. e4 {[%clk 0:03:00]}  c6 {[%clk 0:02:58]} 2. d4 {[%clk 0:03:00]}  d5 {[%clk 0:02:59]} 3. e5 {[%clk 0:03:01]}  Bf5 {[%clk 0:02:59]} 4. Nf3 {[%clk 0:03:01]}  e6 {[%clk 0:02:59]} 5. Be2 {[%clk 0:03:02]}  Ne7 {[%clk 0:02:59]} 6. O-O {[%clk 0:03:02]}  Ng6 {[%clk 0:03:00]} 7. c4 {[%clk 0:02:54]}  Nd7 {[%clk 0:02:59]} 8. Nc3 {[%clk 0:02:49]}  f6 {[%clk 0:02:57]} 9. cxd5 {[%clk 0:02:19]}  exd5 {[%clk 0:02:53]} 10. Qb3 {[%clk 0:02:01]}  Qb6 {[%clk 0:02:34]} 11. Qxb6 {[%clk 0:01:42]}  axb6 {[%clk 0:02:34]} 12. exf6 {[%clk 0:01:42]}  Nxf6 {[%clk 0:02:34]} 13. Bg5 {[%clk 0:01:38]}  Bd6 {[%clk 0:02:31]} 14. Nh4 {[%clk 0:01:36]}  Nxh4 {[%clk 0:02:29]} 15. Bxh4 {[%clk 0:01:36]}  b5 {[%clk 0:02:27]} 16. a4 {[%clk 0:01:17]}  b4 {[%clk 0:02:26]} 17. Nd1 {[%clk 0:01:17]}  Ne4 {[%clk 0:02:21]} 18. Ne3 {[%clk 0:01:14]}  Bg6 {[%clk 0:02:12]} 19. f3 {[%clk 0:01:14]}  Nd2 {[%clk 0:02:11]} 20. Rfe1 {[%clk 0:00:33]}  Nb3 {[%clk 0:02:08]} 21. Nxd5 {[%clk 0:00:33]}  Nxa1 {[%clk 0:01:49]} 22. Bc4+ {[%clk 0:00:27]}  Kf8 {[%clk 0:01:43]} 23. Nb6 {[%clk 0:00:27]}  Nc2 {[%clk 0:01:25]} 24. Nd7# {[%clk 0:00:26]} 1-0


[Site "https://www.chess.com"]